[Event "Titled Tuesday Blitz March 01 Late 2022"]
[White "Papasimakopoulos, Alexandros"]
[Black "Aldokhin, Ivan"]
[WhiteFideId "4244125"]
[BlackFideId "24115720"]
[WhiteElo "2724"]
[BlackElo "2526"]
[Result "0-1"]
[Round "07"]
[TimeControl "180+1"]
[Date "2022.03.02"]
[WhiteClock "0:01:06"]
[BlackClock "0:00:29"]

1. d4 {[%clk 0:03:00]}  Nf6 {[%clk 0:02:59]} 2. c4 {[%clk 0:03:01]}  g6 {[%clk 0:03:00]} 3. Nc3 {[%clk 0:03:01]}  Bg7 {[%clk 0:03:01]} 4. e4 {[%clk 0:03:01]}  d6 {[%clk 0:03:02]} 5. f3 {[%clk 0:03:02]}  O-O {[%clk 0:03:02]} 6. Nge2 {[%clk 0:03:03]}  c6 {[%clk 0:03:02]} 7. Be3 {[%clk 0:03:03]}  d5 {[%clk 0:03:02]} 8. e5 {[%clk 0:02:58]}  Nfd7 {[%clk 0:03:02]} 9. cxd5 {[%clk 0:02:57]}  cxd5 {[%clk 0:03:02]} 10. Nxd5 {[%clk 0:02:58]}  Nc6 {[%clk 0:03:02]} 11. f4 {[%clk 0:02:56]}  Nb6 {[%clk 0:02:59]} 12. Nxb6 {[%clk 0:02:55]}  Qxb6 {[%clk 0:02:44]} 13. Qd2 {[%clk 0:02:47]}  Rd8 {[%clk 0:02:44]} 14. O-O-O {[%clk 0:02:46]}  Nb4 {[%clk 0:02:25]} 15. Nc3 {[%clk 0:02:44]}  Bf5 {[%clk 0:02:12]} 16. a3 {[%clk 0:02:40]}  Nd5 {[%clk 0:01:50]} 17. Nxd5 {[%clk 0:02:37]}  Rxd5 {[%clk 0:01:48]} 18. Bd3 {[%clk 0:02:37]}  Be6 {[%clk 0:01:34]} 19. Qb4 {[%clk 0:02:30]}  Qc6+ {[%clk 0:01:20]} 20. Kb1 {[%clk 0:02:28]}  Rd7 {[%clk 0:01:21]} 21. Rd2 {[%clk 0:02:07]}  Qd5 {[%clk 0:01:14]} 22. b3 {[%clk 0:02:07]}  Bf5 {[%clk 0:00:59]} 23. Bxf5 {[%clk 0:02:02]}  gxf5 {[%clk 0:00:59]} 24. Rc1 {[%clk 0:02:01]}  Qe4+ {[%clk 0:00:59]} 25. Kb2 {[%clk 0:01:58]}  Qxe3 {[%clk 0:00:59]} 26. g3 {[%clk 0:01:55]}  Rad8 {[%clk 0:00:57]} 27. Rcd1 {[%clk 0:01:54]}  e6 {[%clk 0:00:56]} 28. Qc4 {[%clk 0:01:50]}  Qe4 {[%clk 0:00:53]} 29. Re2 {[%clk 0:01:47]}  Qd5 {[%clk 0:00:53]} 30. Red2 {[%clk 0:01:45]}  Bf8 {[%clk 0:00:53]} 31. Rd3 {[%clk 0:01:41]}  b5 {[%clk 0:00:51]} 32. Qc3 {[%clk 0:01:38]}  Be7 {[%clk 0:00:51]} 33. R3d2 {[%clk 0:01:36]}  Qe4 {[%clk 0:00:45]} 34. Rd3 {[%clk 0:01:24]}  Qg2+ {[%clk 0:00:43]} 35. R3d2 {[%clk 0:01:24]}  Qb7 {[%clk 0:00:44]} 36. h3 {[%clk 0:01:22]}  b4 {[%clk 0:00:44]} 37. Qc4 {[%clk 0:01:20]}  bxa3+ {[%clk 0:00:44]} 38. Ka2 {[%clk 0:01:20]}  Rc7 {[%clk 0:00:44]} 39. Qe2 {[%clk 0:01:19]}  Rc3 {[%clk 0:00:42]} 40. Rb1 {[%clk 0:01:17]}  Rdc8 {[%clk 0:00:35]} 41. g4 {[%clk 0:01:17]}  Qe4 {[%clk 0:00:29]} 42. Qxe4 {[%clk 0:01:06]}  fxe4 {[%clk 0:00:29]} 0-1


[Site "https://www.chess.com"]

[Event "Titled Tuesday Blitz March 01 Late 2022"]
[White "Peatman, Carter"]
[Black "Toncheva, Nadya"]
[WhiteFideId "2096480"]
[BlackFideId "2924056"]
[WhiteElo "2281"]
[BlackElo "1920"]
[Result "0-1"]
[Round "07"]
[TimeControl "180+1"]
[Date "2022.03.02"]
[WhiteClock "0:00:09"]
[BlackClock "0:00:02"]

1. d4 {[%clk 0:02:59]}  Nf6 {[%clk 0:02:57]} 2. Bf4 {[%clk 0:02:59]}  e6 {[%clk 0:02:57]} 3. e3 {[%clk 0:02:59]}  c5 {[%clk 0:02:57]} 4. Nd2 {[%clk 0:02:59]}  d5 {[%clk 0:02:57]} 5. c3 {[%clk 0:02:57]}  Bd6 {[%clk 0:02:58]} 6. Bg3 {[%clk 0:02:58]}  Qc7 {[%clk 0:02:58]} 7. Bb5+ {[%clk 0:02:56]}  Bd7 {[%clk 0:02:57]} 8. Qe2 {[%clk 0:02:53]}  a6 {[%clk 0:02:57]} 9. Bxd7+ {[%clk 0:02:49]}  Nbxd7 {[%clk 0:02:58]} 10. f4 {[%clk 0:02:47]}  Ne4 {[%clk 0:02:54]} 11. Nxe4 {[%clk 0:02:20]}  dxe4 {[%clk 0:02:55]} 12. Nh3 {[%clk 0:02:20]}  O-O {[%clk 0:02:48]} 13. O-O {[%clk 0:02:18]}  b5 {[%clk 0:02:39]} 14. Ng5 {[%clk 0:02:16]}  Nf6 {[%clk 0:02:19]} 15. Qc2 {[%clk 0:02:15]}  Qc6 {[%clk 0:02:18]} 16. Bh4 {[%clk 0:02:08]}  cxd4 {[%clk 0:01:08]} 17. exd4 {[%clk 0:02:06]}  h6 {[%clk 0:01:06]} 18. Nh3 {[%clk 0:02:00]}  Nd7 {[%clk 0:01:05]} 19. f5 {[%clk 0:01:43]}  exf5 {[%clk 0:01:00]} 20. Rxf5 {[%clk 0:01:44]}  g6 {[%clk 0:01:00]} 21. Rff1 {[%clk 0:01:41]}  f5 {[%clk 0:00:59]} 22. Qd2 {[%clk 0:01:35]}  Kh7 {[%clk 0:00:53]} 23. Rae1 {[%clk 0:01:22]}  Nb6 {[%clk 0:00:50]} 24. Qf2 {[%clk 0:01:08]}  Nd5 {[%clk 0:00:46]} 25. Qe2 {[%clk 0:00:59]}  Rae8 {[%clk 0:00:33]} 26. Kh1 {[%clk 0:00:45]}  Qc8 {[%clk 0:00:31]} 27. Bf2 {[%clk 0:00:42]}  f4 {[%clk 0:00:29]} 28. Bg1 {[%clk 0:00:43]}  f3 {[%clk 0:00:19]} 29. Qc2 {[%clk 0:00:42]}  Qg4 {[%clk 0:00:19]} 30. b3 {[%clk 0:00:37]}  e3 {[%clk 0:00:18]} 31. c4 {[%clk 0:00:30]}  e2 {[%clk 0:00:12]} 32. Rf2 {[%clk 0:00:26]}  Ne3 {[%clk 0:00:10]} 33. gxf3 {[%clk 0:00:19]}  Qxh3 {[%clk 0:00:08]} 34. Qd2 {[%clk 0:00:18]}  Rxf3 {[%clk 0:00:08]} 35. Rexe2 {[%clk 0:00:17]}  Ng4 {[%clk 0:00:04]} 36. Rxf3 {[%clk 0:00:17]}  Qxf3+ {[%clk 0:00:04]} 37. Rg2 {[%clk 0:00:17]}  Re4 {[%clk 0:00:03]} 38. d5 {[%clk 0:00:17]}  Qf1 {[%clk 0:00:03]} 39. c5 {[%clk 0:00:16]}  Re1 {[%clk 0:00:03]} 40. cxd6 {[%clk 0:00:15]}  Rd1 {[%clk 0:00:02]} 41. Qc2 {[%clk 0:00:14]}  Rxd5 {[%clk 0:00:02]} 42. Qc7+ {[%clk 0:00:13]}  Kg8 {[%clk 0:00:02]} 43. Qd8+ {[%clk 0:00:13]}  Qf8 {[%clk 0:00:03]} 44. Qd7 {[%clk 0:00:12]}  Nf6 {[%clk 0:00:01]} 45. Qe6+ {[%clk 0:00:12]}  Qf7 {[%clk 0:00:02]} 46. Qc8+ {[%clk 0:00:12]}  Kg7 {[%clk 0:00:02]} 47. Bc5 {[%clk 0:00:09]}  Rd1+ {[%clk 0:00:01]} 48. Rg1 {[%clk 0:00:09]}  Qd5# {[%clk 0:00:02]} 0-1


[Site "https://www.chess.com"]

[Event "Titled Tuesday Blitz March 01 Late 2022"]
[White "Prohorov, Olexandr"]
[Black "Ladan, Nicholas"]
[WhiteFideId "14105578"]
[BlackFideId "30918855"]
[WhiteElo "1993"]
[BlackElo "2361"]
[Result "0-1"]
[Round "07"]
[TimeControl "180+1"]
[Date "2022.03.02"]
[WhiteClock "0:00:42"]
[BlackClock "0:01:21"]

1. e4 {[%clk 0:03:00]}  e5 {[%clk 0:02:57]} 2. Nf3 {[%clk 0:02:59]}  Nc6 {[%clk 0:02:55]} 3. Bb5 {[%clk 0:02:59]}  a6 {[%clk 0:02:54]} 4. Ba4 {[%clk 0:02:59]}  g6 {[%clk 0:02:52]} 5. d4 {[%clk 0:02:58]}  exd4 {[%clk 0:02:52]} 6. Bg5 {[%clk 0:02:58]}  Be7 {[%clk 0:02:50]} 7. Bf4 {[%clk 0:02:57]}  Nf6 {[%clk 0:02:48]} 8. Nxd4 {[%clk 0:02:48]}  Nxe4 {[%clk 0:02:45]} 9. O-O {[%clk 0:02:28]}  O-O {[%clk 0:02:35]} 10. Re1 {[%clk 0:02:20]}  Nc5 {[%clk 0:02:35]} 11. Bxc6 {[%clk 0:02:08]}  dxc6 {[%clk 0:02:29]} 12. Nc3 {[%clk 0:02:08]}  Ne6 {[%clk 0:02:25]} 13. Nxe6 {[%clk 0:02:04]}  Bxe6 {[%clk 0:02:26]} 14. Qe2 {[%clk 0:02:01]}  Re8 {[%clk 0:02:09]} 15. Rad1 {[%clk 0:02:01]}  Qc8 {[%clk 0:02:09]} 16. Qf3 {[%clk 0:01:47]}  Bg4 {[%clk 0:01:50]} 17. Qg3 {[%clk 0:01:38]}  Bxd1 {[%clk 0:01:49]} 18. Rxd1 {[%clk 0:01:39]}  Bf6 {[%clk 0:01:47]} 19. h4 {[%clk 0:01:32]}  h5 {[%clk 0:01:42]} 20. Bxc7 {[%clk 0:01:29]}  Qg4 {[%clk 0:01:41]} 21. Qxg4 {[%clk 0:01:22]}  hxg4 {[%clk 0:01:40]} 22. Rd7 {[%clk 0:01:14]}  Rac8 {[%clk 0:01:37]} 23. g3 {[%clk 0:01:08]}  Re7 {[%clk 0:01:35]} 24. Rxe7 {[%clk 0:01:07]}  Bxe7 {[%clk 0:01:36]} 25. Be5 {[%clk 0:01:06]}  Bb4 {[%clk 0:01:30]} 26. Ne4 {[%clk 0:01:05]}  f5 {[%clk 0:01:24]} 27. Nf6+ {[%clk 0:01:03]}  Kf7 {[%clk 0:01:24]} 28. f4 {[%clk 0:00:51]}  gxf3 {[%clk 0:01:23]} 29. Kf2 {[%clk 0:00:52]}  Ke6 {[%clk 0:01:21]} 30. Bd4 {[%clk 0:00:42]}  c5 {[%clk 0:01:21]} 0-1


[Site "https://www.chess.com"]

[Event "Titled Tuesday Blitz March 01 Late 2022"]
[White "Renjith, Sravan"]
[Black "Seo, Jung Min"]
[WhiteFideId "4306783"]
[BlackFideId "1734687"]
[WhiteElo "1863"]
[BlackElo "2401"]
[Result "0-1"]
[Round "07"]
[TimeControl "180+1"]
[Date "2022.03.01"]
[WhiteClock "0:00:39"]
[BlackClock "0:01:14"]

1. Nf3 {[%clk 0:03:00]}  d5 {[%clk 0:02:59]} 2. d4 {[%clk 0:02:59]}  Nf6 {[%clk 0:02:59]} 3. c4 {[%clk 0:02:59]}  e6 {[%clk 0:02:58]} 4. cxd5 {[%clk 0:02:59]}  exd5 {[%clk 0:02:58]} 5. Nc3 {[%clk 0:02:59]}  c6 {[%clk 0:02:53]} 6. g3 {[%clk 0:02:57]}  Bf5 {[%clk 0:02:53]} 7. Bg2 {[%clk 0:02:55]}  Nbd7 {[%clk 0:02:53]} 8. O-O {[%clk 0:02:55]}  Be7 {[%clk 0:02:53]} 9. Ne5 {[%clk 0:02:55]}  O-O {[%clk 0:02:51]} 10. f4 {[%clk 0:02:54]}  Qb6 {[%clk 0:02:50]} 11. e3 {[%clk 0:02:51]}  Nxe5 {[%clk 0:02:39]} 12. fxe5 {[%clk 0:02:52]}  Bg4 {[%clk 0:02:39]} 13. Qd3 {[%clk 0:02:21]}  Nd7 {[%clk 0:02:35]} 14. a3 {[%clk 0:02:16]}  a5 {[%clk 0:02:34]} 15. Bd2 {[%clk 0:02:12]}  Rfe8 {[%clk 0:02:29]} 16. Na4 {[%clk 0:02:11]}  Qd8 {[%clk 0:02:24]} 17. b4 {[%clk 0:02:09]}  axb4 {[%clk 0:02:22]} 18. axb4 {[%clk 0:02:10]}  Be6 {[%clk 0:02:21]} 19. Nc5 {[%clk 0:02:10]}  Nxc5 {[%clk 0:02:16]} 20. bxc5 {[%clk 0:02:11]}  b5 {[%clk 0:02:12]} 21. cxb6 {[%clk 0:01:45]}  Qxb6 {[%clk 0:02:10]} 22. Rfb1 {[%clk 0:01:44]}  Rxa1 {[%clk 0:02:08]} 23. Rxa1 {[%clk 0:01:45]}  c5 {[%clk 0:02:05]} 24. Rb1 {[%clk 0:01:34]}  Qc7 {[%clk 0:02:03]} 25. Qb5 {[%clk 0:01:32]}  Rc8 {[%clk 0:01:58]} 26. Ba5 {[%clk 0:01:28]}  Qa7 {[%clk 0:01:51]} 27. Rc1 {[%clk 0:01:23]}  h6 {[%clk 0:01:43]} 28. Qb6 {[%clk 0:01:09]}  Qa8 {[%clk 0:01:37]} 29. dxc5 {[%clk 0:01:06]}  Bd8 {[%clk 0:01:34]} 30. Qb5 {[%clk 0:00:41]}  Qxa5 {[%clk 0:01:20]} 31. Qe8+ {[%clk 0:00:38]}  Kh7 {[%clk 0:01:20]} 32. c6 {[%clk 0:00:39]}  Bg5 {[%clk 0:01:14]} 0-1


[Site "https://www.chess.com"]

[Event "Titled Tuesday Blitz March 01 Late 2022"]
[White "Riazantsev, Alexander"]
[Black "Martinez Alcantara, Jose Eduardo"]
[WhiteFideId "4125029"]
[BlackFideId "3805662"]
[WhiteElo "2595"]
[BlackElo "2690"]
[Result "1/2-1/2"]
[Round "07"]
[TimeControl "180+1"]
[Date "2022.03.01"]
[WhiteClock "0:00:10"]
[BlackClock "0:00:05"]

1. d4 {[%clk 0:03:00]}  Nf6 {[%clk 0:02:58]} 2. c4 {[%clk 0:03:00]}  e6 {[%clk 0:02:59]} 3. Nf3 {[%clk 0:03:00]}  Bb4+ {[%clk 0:02:59]} 4. Bd2 {[%clk 0:03:00]}  Qe7 {[%clk 0:02:59]} 5. g3 {[%clk 0:02:58]}  Bxd2+ {[%clk 0:03:00]} 6. Qxd2 {[%clk 0:02:58]}  Nc6 {[%clk 0:03:00]} 7. a3 {[%clk 0:02:45]}  d5 {[%clk 0:02:57]} 8. cxd5 {[%clk 0:02:33]}  exd5 {[%clk 0:02:57]} 9. Bg2 {[%clk 0:02:33]}  O-O {[%clk 0:02:56]} 10. O-O {[%clk 0:02:33]}  Bf5 {[%clk 0:02:55]} 11. e3 {[%clk 0:02:29]}  Rad8 {[%clk 0:02:39]} 12. Nc3 {[%clk 0:02:28]}  Na5 {[%clk 0:02:36]} 13. Qd1 {[%clk 0:02:15]}  Nc4 {[%clk 0:02:26]} 14. Nd2 {[%clk 0:02:15]}  Nb6 {[%clk 0:02:14]} 15. Na4 {[%clk 0:01:53]}  Nc8 {[%clk 0:02:10]} 16. b4 {[%clk 0:01:48]}  c6 {[%clk 0:02:10]} 17. Nc5 {[%clk 0:01:48]}  Nd6 {[%clk 0:02:01]} 18. Qb3 {[%clk 0:01:48]}  h5 {[%clk 0:01:57]} 19. h4 {[%clk 0:01:47]}  Rfe8 {[%clk 0:01:55]} 20. a4 {[%clk 0:01:46]}  a6 {[%clk 0:01:53]} 21. Rfe1 {[%clk 0:01:45]}  g6 {[%clk 0:01:35]} 22. Bf1 {[%clk 0:01:39]}  Nfe4 {[%clk 0:01:34]} 23. Ncxe4 {[%clk 0:01:38]}  Nxe4 {[%clk 0:01:32]} 24. Nxe4 {[%clk 0:01:37]}  Bxe4 {[%clk 0:01:33]} 25. Bg2 {[%clk 0:01:21]}  Rd6 {[%clk 0:01:16]} 26. Bxe4 {[%clk 0:00:58]}  Qxe4 {[%clk 0:01:17]} 27. Qb1 {[%clk 0:00:56]}  Qe7 {[%clk 0:01:17]} 28. b5 {[%clk 0:00:53]}  axb5 {[%clk 0:01:05]} 29. axb5 {[%clk 0:00:53]}  g5 {[%clk 0:01:05]} 30. bxc6 {[%clk 0:00:51]}  bxc6 {[%clk 0:01:02]} 31. hxg5 {[%clk 0:00:41]}  Qxg5 {[%clk 0:01:00]} 32. e4 {[%clk 0:00:29]}  Rde6 {[%clk 0:00:48]} 33. e5 {[%clk 0:00:28]}  h4 {[%clk 0:00:48]} 34. Ra3 {[%clk 0:00:27]}  Rg6 {[%clk 0:00:47]} 35. Rf3 {[%clk 0:00:26]}  Kg7 {[%clk 0:00:42]} 36. Kg2 {[%clk 0:00:22]}  Qg4 {[%clk 0:00:23]} 37. Qf5 {[%clk 0:00:20]}  Qxf5 {[%clk 0:00:23]} 38. Rxf5 {[%clk 0:00:21]}  Rb8 {[%clk 0:00:20]} 39. Re3 {[%clk 0:00:15]}  hxg3 {[%clk 0:00:18]} 40. Rxg3 {[%clk 0:00:15]}  Rb4 {[%clk 0:00:12]} 41. Rf4 {[%clk 0:00:15]}  c5 {[%clk 0:00:07]} 42. Rxg6+ {[%clk 0:00:14]}  fxg6 {[%clk 0:00:07]} 43. e6 {[%clk 0:00:14]}  cxd4 {[%clk 0:00:04]} 44. e7 {[%clk 0:00:11]}  Rb8 {[%clk 0:00:04]} 45. Rxd4 {[%clk 0:00:10]}  Re8 {[%clk 0:00:05]} 46. Rxd5 {[%clk 0:00:10]}  Rxe7 {[%clk 0:00:05]} 47. Rd3 {[%clk 0:00:10]} 1/2-1/2


[Site "https://www.chess.com"]

[Event "Titled Tuesday Blitz March 01 Late 2022"]
[White "Romanchuk, Viktor"]
[Black "Bryakin, Mikhail"]
[WhiteFideId "14109271"]
[BlackFideId "4165314"]
[WhiteElo "2527"]
[BlackElo "2748"]
[Result "0-1"]
[Round "07"]
[TimeControl "180+1"]
[Date "2022.03.02"]
[WhiteClock "0:00:18"]
[BlackClock "0:01:32"]

1. d4 {[%clk 0:03:00]}  Nf6 {[%clk 0:02:59]} 2. c4 {[%clk 0:03:00]}  g6 {[%clk 0:02:58]} 3. Nc3 {[%clk 0:03:00]}  Bg7 {[%clk 0:02:58]} 4. Nf3 {[%clk 0:03:01]}  d6 {[%clk 0:02:54]} 5. g3 {[%clk 0:03:01]}  O-O {[%clk 0:02:54]} 6. Bg2 {[%clk 0:03:01]}  c5 {[%clk 0:02:54]} 7. O-O {[%clk 0:03:02]}  cxd4 {[%clk 0:02:53]} 8. Nxd4 {[%clk 0:03:01]}  Nc6 {[%clk 0:02:53]} 9. e3 {[%clk 0:03:01]}  Bd7 {[%clk 0:02:52]} 10. b3 {[%clk 0:03:01]}  a6 {[%clk 0:02:50]} 11. Bb2 {[%clk 0:03:01]}  Rc8 {[%clk 0:02:51]} 12. Rc1 {[%clk 0:03:00]}  Nxd4 {[%clk 0:02:51]} 13. exd4 {[%clk 0:02:50]}  Bc6 {[%clk 0:02:51]} 14. Bh3 {[%clk 0:02:43]}  Bd7 {[%clk 0:02:30]} 15. Bg2 {[%clk 0:02:42]}  Qc7 {[%clk 0:02:22]} 16. Re1 {[%clk 0:02:38]}  Rfe8 {[%clk 0:02:20]} 17. Qd2 {[%clk 0:02:34]}  Qb8 {[%clk 0:02:20]} 18. Re2 {[%clk 0:02:10]}  b5 {[%clk 0:02:20]} 19. cxb5 {[%clk 0:02:08]}  axb5 {[%clk 0:02:16]} 20. Rce1 {[%clk 0:01:58]}  e6 {[%clk 0:02:12]} 21. Ne4 {[%clk 0:01:50]}  Nxe4 {[%clk 0:02:12]} 22. Bxe4 {[%clk 0:01:50]}  d5 {[%clk 0:02:12]} 23. Bd3 {[%clk 0:01:50]}  b4 {[%clk 0:02:11]} 24. Rc1 {[%clk 0:01:46]}  Rxc1+ {[%clk 0:02:11]} 25. Qxc1 {[%clk 0:01:47]}  Bb5 {[%clk 0:02:11]} 26. Bxb5 {[%clk 0:01:43]}  Qxb5 {[%clk 0:02:11]} 27. Rc2 {[%clk 0:01:43]}  h5 {[%clk 0:02:09]} 28. h4 {[%clk 0:01:38]}  Bf6 {[%clk 0:02:09]} 29. Rc8 {[%clk 0:01:36]}  Kg7 {[%clk 0:02:08]} 30. Rxe8 {[%clk 0:01:34]}  Qxe8 {[%clk 0:02:09]} 31. Qd2 {[%clk 0:01:33]}  Qa8 {[%clk 0:02:09]} 32. Qxb4 {[%clk 0:01:28]}  Qxa2 {[%clk 0:02:09]} 33. Qc3 {[%clk 0:01:28]}  Qb1+ {[%clk 0:02:10]} 34. Kg2 {[%clk 0:01:26]}  Qe4+ {[%clk 0:02:10]} 35. Qf3 {[%clk 0:01:26]}  Qc2 {[%clk 0:02:10]} 36. Qc3 {[%clk 0:01:26]}  Qe2 {[%clk 0:02:10]} 37. b4 {[%clk 0:01:23]}  g5 {[%clk 0:02:07]} 38. hxg5 {[%clk 0:01:22]}  Bxg5 {[%clk 0:02:08]} 39. Ba1 {[%clk 0:01:10]}  Bf6 {[%clk 0:01:56]} 40. Qf3 {[%clk 0:01:10]}  Qa2 {[%clk 0:01:56]} 41. Bc3 {[%clk 0:01:01]}  Qc2 {[%clk 0:01:56]} 42. Qe3 {[%clk 0:00:58]}  Qb3 {[%clk 0:01:50]} 43. Qd2 {[%clk 0:00:56]}  h4 {[%clk 0:01:47]} 44. gxh4 {[%clk 0:00:56]}  Bxh4 {[%clk 0:01:48]} 45. Qe3 {[%clk 0:00:51]}  Be7 {[%clk 0:01:48]} 46. Qg3+ {[%clk 0:00:51]}  Kf8 {[%clk 0:01:46]} 47. Qb8+ {[%clk 0:00:50]}  Kg7 {[%clk 0:01:47]} 48. Qg3+ {[%clk 0:00:51]}  Kh7 {[%clk 0:01:47]} 49. Qh3+ {[%clk 0:00:50]}  Kg6 {[%clk 0:01:46]} 50. Qd3+ {[%clk 0:00:46]}  f5 {[%clk 0:01:45]} 51. Qe3 {[%clk 0:00:45]}  Kf7 {[%clk 0:01:45]} 52. Qh3 {[%clk 0:00:41]}  Ke8 {[%clk 0:01:42]} 53. Qe3 {[%clk 0:00:30]}  Kd7 {[%clk 0:01:43]} 54. Qd2 {[%clk 0:00:29]}  Bd6 {[%clk 0:01:41]} 55. Qe3 {[%clk 0:00:27]}  Qc2 {[%clk 0:01:37]} 56. Qd2 {[%clk 0:00:27]}  Qxd2 {[%clk 0:01:34]} 57. Bxd2 {[%clk 0:00:27]}  Kc6 {[%clk 0:01:34]} 58. Kf3 {[%clk 0:00:27]}  Kb5 {[%clk 0:01:35]} 59. Ke3 {[%clk 0:00:21]}  Bxb4 {[%clk 0:01:28]} 60. Bxb4 {[%clk 0:00:18]}  Kxb4 {[%clk 0:01:29]} 61. Kf4 {[%clk 0:00:19]}  Kc4 {[%clk 0:01:29]} 62. Ke5 {[%clk 0:00:19]}  f4 {[%clk 0:01:30]} 63. f3 {[%clk 0:00:18]}  Kd3 {[%clk 0:01:30]} 64. Kxe6 {[%clk 0:00:17]}  Kxd4 {[%clk 0:01:31]} 65. Kf5 {[%clk 0:00:17]}  Ke3 {[%clk 0:01:31]} 66. Ke5 {[%clk 0:00:18]}  d4 {[%clk 0:01:32]} 0-1


[Site "https://www.chess.com"]

[Event "Titled Tuesday Blitz March 01 Late 2022"]
[White "Romero Ruscalleda, Josep"]
[Black "Migot, Tangi"]
[WhiteFideId "2231859"]
[BlackFideId "662445"]
[WhiteElo "2315"]
[BlackElo "2500"]
[Result "0-1"]
[Round "07"]
[TimeControl "180+1"]
[Date "2022.03.02"]
[WhiteClock "0:00:32"]
[BlackClock "0:01:09"]

1. e4 {[%clk 0:02:59]}  e5 {[%clk 0:03:00]} 2. Nf3 {[%clk 0:02:58]}  d6 {[%clk 0:03:01]} 3. d4 {[%clk 0:02:57]}  exd4 {[%clk 0:03:02]} 4. Nxd4 {[%clk 0:02:57]}  Nf6 {[%clk 0:03:02]} 5. Nc3 {[%clk 0:02:57]}  Be7 {[%clk 0:03:03]} 6. Be3 {[%clk 0:02:56]}  O-O {[%clk 0:03:03]} 7. Be2 {[%clk 0:02:55]}  Re8 {[%clk 0:03:02]} 8. O-O {[%clk 0:02:54]}  Bf8 {[%clk 0:03:03]} 9. f3 {[%clk 0:02:54]}  Nc6 {[%clk 0:03:00]} 10. Qd2 {[%clk 0:02:51]}  Nxd4 {[%clk 0:03:00]} 11. Bxd4 {[%clk 0:02:51]}  c6 {[%clk 0:03:00]} 12. Rad1 {[%clk 0:02:50]}  Be6 {[%clk 0:02:59]} 13. Rfe1 {[%clk 0:02:42]}  Nd7 {[%clk 0:02:59]} 14. Qf4 {[%clk 0:02:36]}  h6 {[%clk 0:02:49]} 15. Qg3 {[%clk 0:02:34]}  Qg5 {[%clk 0:02:47]} 16. Qxg5 {[%clk 0:02:30]}  hxg5 {[%clk 0:02:48]} 17. Be3 {[%clk 0:02:30]}  f6 {[%clk 0:02:46]} 18. Kf2 {[%clk 0:02:30]}  Ne5 {[%clk 0:02:42]} 19. b3 {[%clk 0:02:26]}  Kf7 {[%clk 0:02:38]} 20. Nb1 {[%clk 0:02:25]}  Be7 {[%clk 0:02:33]} 21. c4 {[%clk 0:02:25]}  a6 {[%clk 0:02:26]} 22. Nc3 {[%clk 0:02:06]}  Rh8 {[%clk 0:02:25]} 23. h3 {[%clk 0:02:05]}  b5 {[%clk 0:02:22]} 24. cxb5 {[%clk 0:01:57]}  axb5 {[%clk 0:02:23]} 25. Rd2 {[%clk 0:01:55]}  Rhb8 {[%clk 0:02:01]} 26. Bf1 {[%clk 0:01:41]}  b4 {[%clk 0:01:51]} 27. Na4 {[%clk 0:01:34]}  c5 {[%clk 0:01:51]} 28. Rc1 {[%clk 0:01:24]}  c4 {[%clk 0:01:46]} 29. Nb6 {[%clk 0:01:22]}  c3 {[%clk 0:01:46]} 30. Rdc2 {[%clk 0:01:12]}  Ra5 {[%clk 0:01:40]} 31. Bd4 {[%clk 0:01:05]}  Bd8 {[%clk 0:01:35]} 32. Nc4 {[%clk 0:00:58]}  Nxc4 {[%clk 0:01:33]} 33. Bxc4 {[%clk 0:00:57]}  Bxc4 {[%clk 0:01:29]} 34. bxc4 {[%clk 0:00:57]}  Rba8 {[%clk 0:01:21]} 35. Ke3 {[%clk 0:00:45]}  Rxa2 {[%clk 0:01:19]} 36. Kd3 {[%clk 0:00:43]}  Rxc2 {[%clk 0:01:15]} 37. Rxc2 {[%clk 0:00:42]}  Ra1 {[%clk 0:01:13]} 38. c5 {[%clk 0:00:41]}  dxc5 {[%clk 0:01:11]} 39. Bxc5 {[%clk 0:00:41]}  Be7 {[%clk 0:01:11]} 40. Bxe7 {[%clk 0:00:37]}  Kxe7 {[%clk 0:01:12]} 41. Kc4 {[%clk 0:00:37]}  Rb1 {[%clk 0:01:12]} 42. Re2 {[%clk 0:00:34]}  Rb2 {[%clk 0:01:10]} 43. Re1 {[%clk 0:00:32]}  c2 {[%clk 0:01:09]} 0-1


[Site "https://www.chess.com"]

[Event "Titled Tuesday Blitz March 01 Late 2022"]
[White "Rorrer, Grayson"]
[Black "Ruiz Aguilar, Pablo Alexander"]
[WhiteFideId "30944996"]
[BlackFideId "4401352"]
[WhiteElo "2122"]
[BlackElo "2125"]
[Result "1-0"]
[Round "07"]
[TimeControl "180+1"]
[Date "2022.03.01"]
[WhiteClock "0:00:12"]
[BlackClock "0:00:03"]

1. e4 {[%clk 0:03:00]}  c5 {[%clk 0:02:58]} 2. Nf3 {[%clk 0:02:57]}  e6 {[%clk 0:02:58]} 3. d4 {[%clk 0:02:57]}  cxd4 {[%clk 0:02:58]} 4. Nxd4 {[%clk 0:02:58]}  a6 {[%clk 0:02:57]} 5. c4 {[%clk 0:02:56]}  Nf6 {[%clk 0:02:56]} 6. Nc3 {[%clk 0:02:57]}  d6 {[%clk 0:02:56]} 7. Be2 {[%clk 0:02:56]}  Be7 {[%clk 0:02:56]} 8. O-O {[%clk 0:02:57]}  O-O {[%clk 0:02:56]} 9. Be3 {[%clk 0:02:58]}  Nbd7 {[%clk 0:02:56]} 10. Rc1 {[%clk 0:02:58]}  Qc7 {[%clk 0:02:46]} 11. Qd2 {[%clk 0:02:58]}  b6 {[%clk 0:02:45]} 12. Rfd1 {[%clk 0:02:58]}  Bb7 {[%clk 0:02:45]} 13. f3 {[%clk 0:02:59]}  Rac8 {[%clk 0:02:45]} 14. a3 {[%clk 0:02:59]}  Qb8 {[%clk 0:02:44]} 15. b4 {[%clk 0:03:00]}  Rfe8 {[%clk 0:02:39]} 16. Qa2 {[%clk 0:02:58]}  Bd8 {[%clk 0:02:37]} 17. a4 {[%clk 0:02:53]}  Bc7 {[%clk 0:02:37]} 18. h3 {[%clk 0:02:51]}  d5 {[%clk 0:02:32]} 19. exd5 {[%clk 0:02:41]}  exd5 {[%clk 0:02:32]} 20. Bf2 {[%clk 0:02:40]}  Bf4 {[%clk 0:02:28]} 21. Rc2 {[%clk 0:02:39]}  dxc4 {[%clk 0:01:55]} 22. Bxc4 {[%clk 0:02:40]}  Ne5 {[%clk 0:01:56]} 23. Be2 {[%clk 0:02:35]}  Nh5 {[%clk 0:01:47]} 24. Nd5 {[%clk 0:02:23]}  Bxd5 {[%clk 0:01:43]} 25. Qxd5 {[%clk 0:02:22]}  Red8 {[%clk 0:01:43]} 26. Qe4 {[%clk 0:02:14]}  Rxc2 {[%clk 0:01:41]} 27. Qxc2 {[%clk 0:02:08]}  g6 {[%clk 0:01:31]} 28. Bxa6 {[%clk 0:02:01]}  Qd6 {[%clk 0:01:08]} 29. Rb1 {[%clk 0:01:32]}  Bg3 {[%clk 0:00:50]} 30. Ne2 {[%clk 0:01:31]}  Bxf2+ {[%clk 0:00:49]} 31. Kxf2 {[%clk 0:01:32]}  Nc6 {[%clk 0:00:41]} 32. Qc3 {[%clk 0:01:24]}  Ne7 {[%clk 0:00:23]} 33. Rb3 {[%clk 0:00:49]}  Nf5 {[%clk 0:00:22]} 34. Qd3 {[%clk 0:00:48]}  Qe7 {[%clk 0:00:20]} 35. Qe4 {[%clk 0:00:43]}  Qf6 {[%clk 0:00:18]} 36. Rd3 {[%clk 0:00:32]}  Rxd3 {[%clk 0:00:17]} 37. Bxd3 {[%clk 0:00:32]}  Qb2 {[%clk 0:00:13]} 38. g4 {[%clk 0:00:21]}  Nhg3 {[%clk 0:00:12]} 39. Qe8+ {[%clk 0:00:21]}  Kg7 {[%clk 0:00:12]} 40. gxf5 {[%clk 0:00:21]}  Nxe2 {[%clk 0:00:07]} 41. Qxe2 {[%clk 0:00:19]}  Qxb4 {[%clk 0:00:07]} 42. Qe5+ {[%clk 0:00:19]}  Kh6 {[%clk 0:00:07]} 43. Qe3+ {[%clk 0:00:18]}  Kg7 {[%clk 0:00:06]} 44. Qe5+ {[%clk 0:00:14]}  Kh6 {[%clk 0:00:06]} 45. f6 {[%clk 0:00:13]}  Qd2+ {[%clk 0:00:05]} 46. Qe2 {[%clk 0:00:13]}  Qb4 {[%clk 0:00:04]} 47. Qe3+ {[%clk 0:00:12]}  Kh5 {[%clk 0:00:05]} 48. f4 {[%clk 0:00:12]}  Qb2+ {[%clk 0:00:04]} 49. Be2+ {[%clk 0:00:12]}  Kh4 {[%clk 0:00:03]} 50. Qg3# {[%clk 0:00:12]} 1-0


[Site "https://www.chess.com"]